fUSD/lending_fUSD_20260218
["ID","MTS","AMOUNT","RATE_DAILY","PERIOD"]
[405945004,1771434573393,-1000.0,0.00014275,2]
[405945005,1771434573419,-1003.02217796,0.00014275,2]
[405945006,1771434573444,-1000.0,0.00014275,2]
[405945007,1771434573469,-500.0,0.00014275,2]
[405945008,1771434573495,-1000.0,0.00014275,2]
[405945009,1771434573519,-500.0,0.00014275,2]
[405945010,1771434573548,-1000.0,0.00014275,2]
[405945011,1771434573574,-500.0,0.00014275,2]
[405945012,1771434573601,-1003.21395664,0.00014275,2]
[405945013,1771434573626,-1000.0,0.00014275,2]
[405945014,1771434573650,-1000.0,0.00014275,2]
[405945015,1771434573676,-171.55391079,0.00014289,2]
[405945016,1771434573701,-300.0,0.00014299,2]
[405945017,1771434573726,-300.0,0.00014299,2]
[405945018,1771434573755,-300.0,0.00014299,2]
[405945019,1771434573784,-285.55291954,0.00014299,2]
[405945020,1771434573808,-500.0,0.00014299,2]
[405945021,1771434574037,-500.0,0.00014299,2]
[405945022,1771434574066,-500.0,0.00014299,2]
[405945023,1771434574089,-500.0,0.00014299,2]
[405945024,1771434574116,-500.0,0.00014299,2]
[405945025,1771434574141,-250.0,0.000143,2]
[405945026,1771434574165,-300.0,0.000143,2]
[405945027,1771434574189,-62862.13529528,0.00014324,2]
[405945028,1771434574214,-379.92,0.00014384,2]
[405945029,1771434574238,-277.35679052,0.00014398,2]
[405945030,1771434574263,-500.0,0.00014398,2]
[405945031,1771434574288,-500.0,0.00014398,2]
[405945032,1771434574314,-500.0,0.00014398,2]
[405945033,1771434574340,-500.0,0.00014398,2]
[405945034,1771434574366,-500.0,0.00014398,2]
[405945035,1771434574391,-500.0,0.00014398,2]
[405945036,1771434574417,-500.0,0.00014398,2]
[405945037,1771434574442,-500.0,0.00014398,2]
[405945038,1771434574467,-500.0,0.00014398,2]
[405945039,1771434574493,-500.0,0.00014398,2]
[405945040,1771434574518,-500.0,0.00014398,2]
[405945041,1771434574544,-500.0,0.00014398,2]
[405945042,1771434574569,-500.0,0.00014398,2]
[405945043,1771434574593,-500.0,0.00014398,2]
[405945044,1771434574618,-500.0,0.00014398,2]
[405945045,1771434574643,-500.0,0.00014398,2]
[405945046,1771434574668,-500.0,0.00014398,2]
[405945047,1771434574693,-500.0,0.00014398,2]
[405945048,1771434574717,-500.0,0.00014398,2]
[405945049,1771434574744,-500.0,0.00014398,2]
[405945050,1771434574769,-151.0,0.00014634,2]
[405945051,1771434574797,-1723.91274362,0.00014648,2]
[405945052,1771434574822,-41484.88774678,0.00014658,2]
[405945053,1771434574848,-500.0,0.00014823,2]
[405945054,1771434574872,-1012.08661125,0.00014823,2]
[405945055,1771434574897,-1500.0,0.00014823,2]
[405945056,1771434574922,-1500.0,0.00014823,2]
[405945057,1771434574946,-1536.10393399,0.00014823,2]
[405945058,1771434574969,-287.61899177,0.00014946,2]
[405945059,1771434574993,-250.0,0.00015,2]
[405945060,1771434577521,505.2606858,0.00013727,2]
[405945061,1771434603275,500.0,6.689e-05,2]
[405945062,1771434622941,19500.0,6.69e-05,2]
[405945063,1771434622964,20000.0,6.69e-05,2]
[405945064,1771434631626,-34843.64549673,6.69e-05,2]
[405945065,1771434631638,-731.38855193,6.69e-05,2]
[405945066,1771434631677,-350.60474466,6.69e-05,2]
[405945067,1771434631732,-547.77308168,6.69e-05,2]
[405945080,1771434637855,-198.07705186,6.689e-05,2]
[405945081,1771434637866,-190.13107595,6.689e-05,2]
[405945082,1771434637878,-265.49168392,6.689e-05,2]
[405945083,1771434637887,-213.94503308,6.69e-05,2]
[405945084,1771434637909,-45379.6871142,6.69e-05,2]
[405945244,1771434639858,-3378432.95597772,6.69e-05,2]
[405945245,1771434639871,-500.0,8.219e-05,2]
[405945246,1771434639880,-500.0,8.219e-05,2]
[405945247,1771434639889,-500.0,8.219e-05,2]
[405945248,1771434639901,-354.40841089,8.219e-05,2]
[405945249,1771434639910,-500.0,8.219e-05,2]
[405945250,1771434639920,-500.0,8.367e-05,2]
[405945251,1771434639929,-500.0,8.367e-05,2]
[405945252,1771434639940,-500.0,8.367e-05,2]
[405945253,1771434639950,-1000.0,8.915e-05,2]
[405945255,1771434639959,-1000.0,8.915e-05,2]
[405945256,1771434639968,-500.92647612,8.915e-05,2]
[405945258,1771434639977,-1500.0,9.463e-05,2]
[405945261,1771434639988,-1500.0,9.463e-05,2]
[405945263,1771434639998,-2000.0,0.00010011,2]
[405945265,1771434640008,-2000.0,0.00010011,2]
[405945267,1771434640018,-2500.0,0.00010559,2]
[405945269,1771434640027,-2500.0,0.00010559,2]
[405945271,1771434640038,-2072.68429711,0.000109,2]
[405945273,1771434640048,-3000.0,0.00011107,2]
[405945274,1771434640057,-3000.0,0.00011107,2]
[405945277,1771434640067,-3500.0,0.00011655,2]
[405945279,1771434640076,-3500.0,0.00011655,2]
[405945281,1771434640085,-500.0,0.00012203,2]
[405945283,1771434640094,-4000.0,0.00012203,2]
[405945285,1771434640103,-244.26,0.00012684,2]
[405945287,1771434640112,-460.671579,0.00012751,2]
[405945289,1771434640121,-161.89972867,0.00013727,2]
[405945290,1771434640130,-160.46079071,0.00013727,2]
[405945292,1771434640140,-162.61077448,0.00013727,2]
[405945294,1771434640149,-500.0,0.00013727,2]
[405945295,1771434640158,-500.0,0.00013727,2]
[405945296,1771434640168,-500.0,0.00013727,2]
[405945297,1771434640177,-1000.0,0.00014275,2]
[405945298,1771434640186,-1000.0,0.00014275,2]
[405945299,1771434640196,-613.66,0.00014298,2]
[405945300,1771434640208,-18433.2683176,0.00014462,2]
[405945301,1771434640218,-500.0,0.00014731,2]
[405945302,1771434640227,-2500.0,0.00014731,2]
[405945303,1771434640236,-1500.0,0.00014823,2]
[405945304,1771434640245,-191.23979414,0.00014823,2]
[405945305,1771434640256,-500.0,0.00014933,2]
[405945306,1771434640265,-500.0,0.00014933,2]
[405945307,1771434640274,-500.0,0.00014933,2]
[405945308,1771434640286,-2500.0,0.00014933,2]
[405945309,1771434640296,-2500.0,0.00014933,2]
[405945310,1771434640306,-200.0,0.00015,2]
[405945311,1771434640317,-275.0,0.00015068,2]
[405945312,1771434640327,-195.0,0.00015068,2]
[405945313,1771434640336,-250.0,0.00015068,2]
[405945315,1771434640346,-379.92,0.00015068,2]
[405945317,1771434640355,-600.0,0.00015105,2]
[405945318,1771434640364,-300.0,0.00015105,2]
[405945319,1771434640373,-195.0,0.00015115,2]
[405945320,1771434640383,-195.0,0.00015115,2]
[405945321,1771434640394,-238.86,0.00015142,2]
[405945322,1771434640404,-200.0,0.0001515,2]
[405945323,1771434640414,-171.55391079,0.00015192,2]
[405945324,1771434640425,-600.0,0.00015198,2]
[405945325,1771434640437,-600.0,0.00015198,2]
[405945326,1771434640447,-300.0,0.00015198,2]
[405945327,1771434640456,-300.0,0.00015198,2]
[405945328,1771434640466,-62862.13529528,0.00015218,2]
[405945329,1771434640476,-200.0,0.00015301,2]
[405945330,1771434640485,-2000.0,0.00015371,2]
[405945331,1771434640495,-2500.0,0.00015415,2]
[405945332,1771434640506,-600.0,0.00015415,2]
[405945333,1771434640516,-5000.0,0.00015415,2]
[405945334,1771434640525,-300.0,0.00015415,2]
[405945335,1771434640535,-150.0,0.00015415,2]
[405945336,1771434640544,-195.0,0.00015415,2]
[405945337,1771434640553,-250.0,0.00015415,2]
[405945338,1771434640563,-200.0,0.00015455,2]
[405945339,1771434640572,-298.26089446,0.00015494,2]
[405945340,1771434640582,-200.0,0.00015609,2]
[405945341,1771434640592,-481.79009161,0.00015634,2]
[405945342,1771434640602,-41484.88774678,0.00015739,2]
[405945343,1771434640611,-379.92,0.00015753,2]
[405945344,1771434640622,-500.0,0.00015908,2]
[405945345,1771434640632,-2500.0,0.00015908,2]
[405945346,1771434640642,-2500.0,0.00015919,2]
[405945347,1771434640652,-213.13,0.00016012,2]
[405945348,1771434640662,-517.34793536,0.00016016,2]
[405945349,1771434640674,-481.79009161,0.00016025,2]
[405945350,1771434640684,-309.29654756,0.00016042,2]
[405945351,1771434640692,-358.32,0.00016049,2]
[405945352,1771434640702,-506.0,0.0001605,2]
[405945353,1771434640711,-171.55391079,0.00016095,2]
[405945354,1771434640720,-62862.13529528,0.00016112,2]
[405945355,1771434640730,-9999.99,0.00016116,2]
[405945356,1771434640739,-18433.2683176,0.00016287,2]
[405945357,1771434640748,-787.2,0.00016366,2]
[405945358,1771434640758,-500.0,0.00016366,2]
[405945359,1771434640767,-500.0,0.00016366,2]
[405945360,1771434640777,-500.0,0.00016366,2]
[405945361,1771434640787,-500.0,0.00016366,2]
[405945362,1771434640797,-481.79009161,0.00016416,2]
[405945363,1771434640806,-227.84,0.00016438,2]
[405945364,1771434640815,-379.92,0.00016438,2]
[405945365,1771434640824,-3240.0,0.00016461,2]
[405945366,1771434640833,-3000.0,0.00016467,2]
[405945367,1771434640842,-173.62051493,0.0001651,2]
[405945368,1771434640851,-1000.0,0.00016543,2]
[405945369,1771434640866,-1000.0,0.00016552,2]
[405945370,1771434640876,-1000.0,0.00016562,2]
[405945371,1771434640885,-1000.0,0.00016571,2]
[405945372,1771434640895,-195.0,0.00016575,2]
[405945373,1771434640907,-250.0,0.00016575,2]
[405945374,1771434640916,-600.0,0.00016575,2]
[405945375,1771434640925,-300.0,0.00016575,2]
[405945376,1771434640934,-320.74051982,0.0001659,2]
[405945377,1771434640945,-996.49958588,0.00016616,2]
[405945378,1771434641152,-1000.0,0.00016667,2]
[405945379,1771434641162,-1000.0,0.00016691,2]
[405945380,1771434641174,-1000.0,0.000167,2]
[405945381,1771434641184,-1000.0,0.00016709,2]
[405945382,1771434641194,-167.05,0.00016712,2]
[405945383,1771434641204,-1000.0,0.00016748,2]
[405945384,1771434641213,-37237.52246235,0.0001678,2]
[405945385,1771434641222,-1000.0,0.0001678,2]
[405945386,1771434641231,-481.79009161,0.00016807,2]
[405945387,1771434641241,-41484.88774678,0.00016819,2]
[405945388,1771434641250,-1000.0,0.00016854,2]
[405945389,1771434641259,-1000.0,0.00016856,2]
[405945390,1771434641268,-1000.0,0.00016856,2]
[405945391,1771434641278,-1000.0,0.00016888,2]
[405945392,1771434641288,-1000.0,0.00016896,2]
[405945393,1771434641297,-3900.0,0.000169,6]
[405945394,1771434641308,-1000.0,0.00016909,2]
[405945395,1771434641320,-517.34793536,0.00016958,2]
[405945396,1771434641330,-1000.0,0.00016974,2]
[405945397,1771434641340,-650.14,0.00016996,2]
[405945398,1771434641349,-1223.27,0.00016996,2]
[405945399,1771434641359,-500.0,0.00016996,2]
[405945400,1771434641369,-500.0,0.00016996,2]
[405945401,1771434641378,-15531.99,0.00016996,2]
[405945402,1771434641388,-171.55391079,0.00016997,2]
[405945403,1771434641398,-300.0,0.00017,2]
[405945404,1771434641408,-506.0,0.00017005,2]
[405945405,1771434641418,-62862.13529528,0.00017006,2]
[405945406,1771434641430,-3500.0,0.00017015,2]
[405945407,1771434641439,-1000.0,0.00017035,2]
[405945408,1771434641448,-2836.0,0.0001704,2]
[405945409,1771434641458,-1000.0,0.00017058,2]
[405945410,1771434641469,-1000.0,0.00017067,2]
[405945411,1771434641478,-1219.539,0.00017121,2]
[405945412,1771434641488,-1000.0,0.0001713,2]
[405945413,1771434641498,-1000.0,0.0001713,2]
[405945414,1771434641507,-1000.0,0.00017133,2]
[405945415,1771434641517,-332.60791905,0.00017138,2]
[405945416,1771434641526,-481.79009161,0.00017198,2]
[405945417,1771434641535,-1000.0,0.00017218,2]
[405945418,1771434641544,-1000.0,0.0001722,2]
[405945419,1771434641554,-1000.0,0.00017222,2]
[405945420,1771434641563,-1000.0,0.00017224,2]
[405945421,1771434641573,-1000.0,0.00017289,2]
[405945422,1771434641582,-1000.0,0.00017299,2]
[405945423,1771434641594,-1000.0,0.00017299,2]
[405945424,1771434641603,-1000.0,0.00017308,2]
[405945425,1771434641613,-1000.0,0.00017318,2]
[405945426,1771434641623,-350.0,0.00017356,2]
[405945427,1771434641633,-1000.0,0.00017367,2]
[405945428,1771434641643,-150.0,0.00017376,2]
[405945429,1771434641653,-1000.0,0.00017393,2]
[405945430,1771434641662,-1000.0,0.00017406,2]
[405945431,1771434641672,-1000.0,0.00017421,2]
[405945432,1771434641681,-1000.0,0.00017434,2]
[405945433,1771434641691,-1000.0,0.00017448,2]
[405945434,1771434641700,-1000.0,0.00017451,2]
[405945435,1771434641710,-150.0,0.00017454,2]
[405945436,1771434641721,-244.26,0.00017454,2]
[405945437,1771434641731,-1000.0,0.00017457,2]
[405945438,1771434641740,-1000.0,0.0001748,2]
[405945439,1771434641750,-288.61284119,0.00017486,2]
[405945440,1771434641759,-5300.0,0.000175,6]
[405945441,1771434641770,-1000.0,0.0001751,2]
[405945442,1771434641780,-1000.0,0.00017519,2]
[405945443,1771434641790,-1000.0,0.00017525,2]
[405945444,1771434641800,-1000.0,0.00017525,2]
[405945445,1771434641811,-1000.0,0.00017552,2]
[405945446,1771434641820,-4000.0,0.00017563,2]
[405945447,1771434641830,-150.0,0.00017565,2]
[405945448,1771434641840,-1000.0,0.00017565,2]
[405945449,1771434641850,-1000.0,0.00017565,2]
[405945450,1771434641861,-150.0,0.00017572,2]
[405945451,1771434641874,-1000.0,0.00017576,2]
[405945452,1771434641883,-1000.0,0.00017577,2]
[405945453,1771434641895,-6600.0,0.000176,6]
[405945454,1771434641906,-150.0,0.00017611,2]
[405945455,1771434641916,-150.0,0.00017633,2]
[405945456,1771434641926,-150.0,0.00017636,2]
[405945457,1771434641938,-4207.67642787,0.0001764,2]
[405945458,1771434641947,-1000.0,0.00017664,2]
[405945459,1771434641956,-344.91441206,0.00017686,2]
[405945460,1771434641966,-1000.0,0.00017688,2]
[405945461,1771434641976,-1300.0,0.000177,6]
[405945462,1771434641985,-1582.1457329,0.000177,2]
[405945463,1771434641995,-787.2,0.00017725,2]
[405945464,1771434642004,-500.0,0.00017725,2]
[405945465,1771434642013,-500.0,0.00017725,2]
[405945466,1771434642023,-500.0,0.00017725,2]
[405945467,1771434642032,-500.0,0.00017725,2]
[405945468,1771434642042,-150.0,0.00017731,2]
[405945469,1771434642051,-150.0,0.00017731,2]
[405945470,1771434642062,-150.0,0.00017734,2]
[405945471,1771434642071,-150.0,0.0001775,2]
[405945472,1771434642080,-150.0,0.00017758,2]
[405945473,1771434642089,-150.0,0.00017758,2]
[405945474,1771434642099,-150.0,0.00017763,2]
[405945475,1771434642109,-2651.971,0.00017764,2]
[405945476,1771434642119,-270.203,0.00017764,2]
[405945477,1771434642129,-150.0,0.00017777,2]
[405945478,1771434642139,-1000.0,0.00017781,2]
[405945479,1771434642148,-790.0,0.00017784,2]
[405945480,1771434642158,-150.0,0.00017785,2]
[405945481,1771434642179,-1300.0,0.000178,6]
[405945482,1771434642191,-790.0,0.00017807,2]
[405945483,1771434642200,-500.0,0.00017808,2]
[405945484,1771434642211,-500.0,0.00017808,2]
[405945485,1771434642221,-500.0,0.00017808,2]
[405945486,1771434642230,-500.0,0.00017808,2]
[405945487,1771434642239,-500.0,0.00017808,2]
[405945488,1771434642248,-500.0,0.00017808,2]
[405945489,1771434642257,-500.0,0.00017808,2]
[405945490,1771434642266,-381.18119596,0.00017808,2]
[405945491,1771434642276,-500.0,0.00017808,2]
[405945492,1771434642285,-500.0,0.00017808,2]
[405945493,1771434642294,-800.0,0.00017808,2]
[405945494,1771434642304,-150.0,0.00017809,2]
[405945495,1771434642314,-2000.0,0.0001782,2]
[405945496,1771434642324,-2000.0,0.0001782,2]
[405945497,1771434642335,-150.0,0.00017832,2]
[405945498,1771434642345,-150.0,0.00017845,2]
[405945499,1771434642355,-200.0,0.00017856,2]
[405945500,1771434642364,-1000.0,0.00017856,2]
[405945501,1771434642374,-238.88,0.00017859,2]
[405945502,1771434642383,-150.0,0.0001786,2]
[405945503,1771434642392,-500.0,0.00017863,2]
[405945504,1771434642401,-1000.0,0.00017884,2]
[405945505,1771434642411,-238.88,0.00017886,2]
[405945506,1771434642421,-150.0,0.00017887,2]
[405945507,1771434642431,-214.59643228,0.00017888,2]
[405945508,1771434642445,-150.0,0.00017888,2]
[405945509,1771434642455,-213.13,0.00017888,2]
[405945510,1771434642465,-150.0,0.00017895,2]
[405945511,1771434642475,-650.14,0.00017899,2]
[405945512,1771434642485,-1223.27,0.00017899,2]
[405945513,1771434642494,-787.2,0.00017899,2]
[405945515,1771434642504,-500.0,0.00017899,2]
[405945516,1771434642513,-207.45341445,0.00017899,2]
[405945517,1771434642523,-500.0,0.00017899,2]
[405945518,1771434642533,-500.0,0.00017899,2]
[405945519,1771434642542,-500.0,0.00017899,2]
[405945521,1771434642551,-500.0,0.00017899,2]
[405945523,1771434642561,-150.0,0.00017899,2]
[405945524,1771434642570,-53160.2329,0.000179,2]
[405945525,1771434642579,-1744.0224,0.000179,2]
[405945526,1771434642588,-32853.2111,0.000179,2]
[405945527,1771434642598,-1000.0,0.000179,2]
[405945528,1771434642607,-25000.0,0.000179,3]
[405945529,1771434642616,-171.55391079,0.000179,2]
[405945530,1771434642626,-62862.13529528,0.000179,2]
[405945531,1771434642635,-517.34793536,0.000179,2]
[405945532,1771434642645,-1300.0,0.000179,6]
[405945533,1771434642655,-41484.88774678,0.000179,2]
[405945534,1771434642664,-541.95409884,0.000179,2]
[405945535,1771434642674,-4491.52307949,0.000179,2]
[405945536,1771434642683,-3305.71867113,0.000179,3]
[405945537,1771434642692,-170.40667766,0.000179,2]
[405945538,1771434642702,-213.13,0.00017907,2]
[405945539,1771434642712,-244.26,0.00017908,2]
[405945540,1771434642723,-1000.0,0.0001791,2]
[405945541,1771434642732,-500.0,0.00017918,2]
[405945542,1771434642741,-1000.0,0.00017926,2]
[405945543,1771434642751,-1080.27787936,0.00017929,2]
[405945544,1771434642760,-1000.0,0.00017932,2]
[405945545,1771434642770,-790.0,0.0001794,2]
[405945546,1771434642779,-150.0,0.00017952,2]
[405945547,1771434642788,-506.0,0.00017959,3]
[405945548,1771434642797,-2452.0,0.00017962,2]
[405945549,1771434642806,-5973.0,0.00017962,2]
[405945550,1771434642815,-412.0,0.00017962,2]
[405945551,1771434642824,-300.0,0.0001797,2]
[405945552,1771434642833,-300.0,0.0001797,2]
[405945553,1771434642843,-400.0,0.0001797,2]
[405945554,1771434642852,-400.0,0.0001797,2]
[405945555,1771434642863,-400.0,0.0001797,2]
[405945556,1771434642873,-400.0,0.0001797,2]
[405945557,1771434642882,-602.41999999,0.0001797,2]
[405945558,1771434642892,-500.0,0.00017972,2]
[405945559,1771434642902,-309.0,0.00017973,2]
[405945560,1771434642911,-500.0,0.00017973,2]
[405945561,1771434642922,-150.0,0.00017973,2]
[405945562,1771434642931,-765.96740979,0.00017986,2]
[405945563,1771434642942,-787.2,0.00017987,2]
[405945564,1771434642952,-578.20924308,0.00017987,3]
[405945565,1771434642962,-250.0,0.00017987,3]
[405945566,1771434642972,-599.60298507,0.00017987,3]
[405945567,1771434642982,-250.0,0.00017987,3]
[405945568,1771434642991,-621.78829552,0.00017987,3]
[405945569,1771434643001,-250.0,0.00017987,3]
[405945570,1771434643012,-556.02393263,0.00017987,3]
[405945571,1771434643021,-250.0,0.00017987,3]
[405945572,1771434643030,-1000.0,0.00017987,3]
[405945573,1771434643039,-250.0,0.00017987,3]
[405945574,1771434643049,-500.0,0.00017987,3]
[405945575,1771434643058,-1000.0,0.00017987,3]
[405945576,1771434643067,-500.0,0.00017987,3]
[405945577,1771434643075,-500.0,0.00017987,3]
[405945578,1771434643085,-500.0,0.00017987,3]
[405945579,1771434643094,-500.0,0.00017987,3]
[405945580,1771434643103,-500.0,0.00017987,3]
[405945581,1771434643112,-250.0,0.00017987,3]
[405945582,1771434643122,-500.0,0.00017987,3]
[405945583,1771434643131,-500.0,0.00017987,3]
[405945584,1771434643140,-250.0,0.00017987,3]
[405945585,1771434643149,-500.0,0.00017987,3]
[405945586,1771434643158,-255.07259394,0.00017987,3]
[405945587,1771434643167,-500.0,0.00017987,3]
[405945588,1771434643176,-500.0,0.00017987,3]
[405945589,1771434643186,-500.0,0.00017987,3]
[405945590,1771434643196,-166.00545754,0.00017987,3]
[405945591,1771434643205,-500.0,0.00017987,3]
[405945592,1771434643214,-162.380719,0.00017987,3]
[405945593,1771434643224,-168.3888056,0.00017987,3]
[405945594,1771434643233,-500.0,0.00017987,3]
[405945595,1771434643243,-500.0,0.00017987,3]
[405945596,1771434643252,-174.61919141,0.00017987,3]
[405945597,1771434643262,-500.0,0.00017987,3]
[405945598,1771434643271,-500.0,0.00017987,3]
[405945599,1771434643280,-500.0,0.00017987,3]
[405945600,1771434643289,-500.0,0.00017987,3]
[405945601,1771434643298,-200.0,0.00017987,3]
[405945602,1771434643307,-500.0,0.00017987,3]
[405945603,1771434643316,-200.0,0.00017987,3]
[405945604,1771434643325,-174.61919141,0.00017987,3]
[405945605,1771434643334,-500.0,0.00017987,3]
[405945607,1771434643343,-200.0,0.00017987,3]
[405945608,1771434643353,-308.62455366,0.00017987,3]
[405945609,1771434643362,-181.08010149,0.00017987,3]
[405945610,1771434643373,-500.0,0.00017987,3]
[405945611,1771434643382,-200.0,0.00017987,3]
[405945612,1771434643391,-187.78006525,0.00017987,3]
[405945613,1771434643400,-500.0,0.00017987,3]
[405945615,1771434643409,-200.0,0.00017987,3]
[405945616,1771434643419,-194.72792766,0.00017987,3]
[405945618,1771434643428,-200.0,0.00017987,3]
[405945621,1771434643438,-201.93286099,0.00017987,3]
[405945623,1771434643447,-200.0,0.00017987,3]
[405945626,1771434643456,-288.82629962,0.00017987,3]
[405945629,1771434643466,-209.40437684,0.00017987,3]
[405945632,1771434643475,-200.0,0.00017987,3]
[405945634,1771434643485,-217.15233878,0.00017987,3]
[405945636,1771434643495,-225.18697532,0.00017987,3]
[405945637,1771434643504,-233.51889341,0.00017987,3]
[405945638,1771434643513,-242.15909246,0.00017987,3]
[405945639,1771434643522,-231.52722367,0.00017987,3]
[405945640,1771434643532,-693.3919763,0.00017987,3]
[405945641,1771434643541,-719.04747942,0.00017987,3]
[405945642,1771434643550,-745.65223616,0.00017987,3]
[405945643,1771434643559,-773.2413689,0.00017987,3]
[405945644,1771434643568,-801.85129955,0.00017987,3]
[405945645,1771434643578,-831.51979763,0.00017987,3]
[405945646,1771434643587,-862.28603014,0.00017987,3]
[405945647,1771434643595,-894.19061326,0.00017987,3]
[405945648,1771434643604,-927.27566595,0.00017987,3]
[405945649,1771434643614,-961.58486559,0.00017987,3]
[405945650,1771434643623,-997.16350561,0.00017987,3]
[405945651,1771434643633,-200.0,0.00017987,3]
[405945652,1771434643642,-500.0,0.00017987,3]
[405945653,1771434643651,-539.13796622,0.00017987,3]
[405945654,1771434643661,-151.0,0.00017987,3]
[405945655,1771434643670,-151.0,0.00017987,3]
[405945656,1771434643679,-151.0,0.00017987,3]
[405945657,1771434643688,-151.0,0.00017987,3]
[405945658,1771434643698,-151.0,0.00017987,3]
[405945659,1771434643707,-151.0,0.00017987,3]
[405945660,1771434643716,-151.0,0.00017987,3]
[405945661,1771434643725,-151.0,0.00017987,3]
[405945662,1771434643734,-151.0,0.00017987,3]
[405945663,1771434643743,-151.0,0.00017987,3]
[405945664,1771434643752,-151.0,0.00017987,3]
[405945665,1771434643762,-500.0,0.00017987,2]
[405945666,1771434643771,-500.0,0.00017987,2]
[405945667,1771434643781,-500.0,0.00017987,2]
[405945668,1771434643790,-238.0,0.00017988,2]
[405945669,1771434643799,-36670.6707691,0.00017988,2]
[405945670,1771434643808,-3063.2331119,0.00017988,2]
[405945671,1771434643818,-1149.27516242,0.0001799,2]
[405945672,1771434643827,-1149.27516242,0.0001799,2]
[405945673,1771434643836,-1149.27516242,0.0001799,2]
[405945674,1771434643846,-151.0,0.00017996,2]
[405945675,1771434643855,-151.0,0.00017997,2]
[405945676,1771434643867,-300.0,0.00017999,2]
[405945677,1771434643876,-666.0,0.00017999,2]
[405945678,1771434643885,-300.0,0.00017999,2]
[405945679,1771434643894,-650.14,0.00017999,2]
[405945680,1771434643906,-650.14,0.00017999,2]
[405945681,1771434643916,-650.14,0.00017999,2]
[405945682,1771434643926,-650.14,0.00017999,2]
[405945683,1771434643936,-650.14,0.00017999,2]
[405945684,1771434643946,-650.14,0.00017999,2]
[405945685,1771434643955,-650.14,0.00017999,2]
[405945686,1771434643964,-650.14,0.00017999,2]
[405945687,1771434643973,-650.14,0.00017999,2]
[405945688,1771434643982,-650.14,0.00017999,2]
[405945689,1771434643991,-650.14,0.00017999,2]
[405945690,1771434644000,-650.14,0.00017999,2]
[405945691,1771434644009,-650.14,0.00017999,2]
[405945692,1771434644019,-650.14,0.00017999,2]
[405945693,1771434644028,-650.14,0.00017999,2]
[405945694,1771434644037,-650.14,0.00017999,2]
[405945695,1771434644047,-650.14,0.00017999,2]
[405945696,1771434644056,-650.14,0.00017999,2]
[405945697,1771434644065,-650.14,0.00017999,2]
[405945698,1771434644075,-650.26047002,0.00017999,2]
[405945699,1771434644084,-1223.27,0.00017999,2]
[405945700,1771434644094,-1223.27,0.00017999,2]
[405945701,1771434644103,-1223.27,0.00017999,2]
[405945702,1771434644113,-1223.27,0.00017999,2]
[405945703,1771434644123,-1223.27,0.00017999,2]
[405945704,1771434644132,-1223.27,0.00017999,2]
[405945705,1771434644142,-1223.27,0.00017999,2]
[405945706,1771434644152,-1223.27,0.00017999,2]
[405945707,1771434644165,-1223.27,0.00017999,2]
[405945708,1771434644175,-1223.27,0.00017999,2]
[405945709,1771434644185,-1223.27,0.00017999,2]
[405945710,1771434644195,-1223.27,0.00017999,2]
[405945711,1771434644205,-1223.27,0.00017999,2]
[405945712,1771434644214,-1223.27,0.00017999,2]
[405945713,1771434644225,-1223.27,0.00017999,2]